[Event "*** Titled Tuesday Blitz"]
[Site "Chess.com"]
[Date "2018.12.04"]
[Round "3"]
[White "Oligan22"]
[Black "kasparik_garik"]
[Result "0-1"]
[WhiteElo "2255"]
[BlackElo "2506"]
[TimeControl "180+2"]
[EndTime "13:38:09 PST"]
[Termination "kasparik_garik won by resignation"]

1. e4 {[%clk 0:03:01.9]} 1... c5 {[%clk 0:02:57.1]} 2. Nf3 {[%clk 0:03:02.6]}
2... e6 {[%clk 0:02:57.7]} 3. d4 {[%clk 0:03:03.1]} 3... cxd4 {[%clk 0:02:59.6]}
4. Nxd4 {[%clk 0:03:04.9]} 4... a6 {[%clk 0:03:00.6]} 5. Nc3 {[%clk 0:03:04.4]}
5... b5 {[%clk 0:03:01.5]} 6. Bd3 {[%clk 0:03:03.6]} 6... Bb7 {[%clk 0:03:02.1]}
7. O-O {[%clk 0:02:59.6]} 7... Nc6 {[%clk 0:03:03]} 8. Nxc6 {[%clk 0:02:54.5]}
8... Bxc6 {[%clk 0:03:03.9]} 9. Re1 {[%clk 0:02:55.8]} 9... Bc5 {[%clk
0:03:03.6]} 10. e5 {[%clk 0:02:38.6]} 10... Qb6 {[%clk 0:02:52]} 11. Be3 {[%clk
0:02:32.7]} 11... f5 {[%clk 0:02:39.4]} 12. Qh5+ {[%clk 0:02:14.7]} 12... g6
{[%clk 0:02:39.8]} 13. Qh4 {[%clk 0:02:14]} 13... Bxe3 {[%clk 0:02:07.4]} 14.
fxe3 {[%clk 0:02:09.4]} 14... Qc5 {[%clk 0:01:52.8]} 15. Qd4 {[%clk 0:02:09.2]}
15... Qxd4 {[%clk 0:01:51.8]} 16. exd4 {[%clk 0:02:11.1]} 16... Ne7 {[%clk
0:01:51.8]} 17. a4 {[%clk 0:02:10.3]} 17... b4 {[%clk 0:01:49.2]} 18. Na2 {[%clk
0:02:09.5]} 18... a5 {[%clk 0:01:43.5]} 19. c3 {[%clk 0:02:03.1]} 19... bxc3
{[%clk 0:01:25.5]} 20. Nxc3 {[%clk 0:02:02.7]} 20... Rb8 {[%clk 0:01:20.7]} 21.
Nb5 {[%clk 0:02:00.2]} 21... Nd5 {[%clk 0:01:20]} 22. Rac1 {[%clk 0:01:50.7]}
22... Ke7 {[%clk 0:01:20.5]} 23. b3 {[%clk 0:01:35.4]} 23... Rb6 {[%clk
0:01:01]} 24. Bc4 {[%clk 0:01:30.1]} 24... Nb4 {[%clk 0:00:50.2]} 25. Red1
{[%clk 0:01:20.6]} 25... Rhb8 {[%clk 0:00:50]} 26. Nd6 {[%clk 0:01:17.3]} 26...
Nd5 {[%clk 0:00:46.1]} 27. Re1 {[%clk 0:01:12.6]} 27... Nf4 {[%clk 0:00:44]} 28.
g3 {[%clk 0:01:11.1]} 28... Nh3+ {[%clk 0:00:44.4]} 29. Kf1 {[%clk 0:01:12.2]}
29... Ng5 {[%clk 0:00:42.8]} 30. Kf2 {[%clk 0:01:06]} 30... Rxb3 {[%clk
0:00:30.5]} 31. Bxb3 {[%clk 0:01:05.5]} 31... Rxb3 {[%clk 0:00:31.3]} 32. Rc5
{[%clk 0:00:45.7]} 32... Nh3+ {[%clk 0:00:27.6]} 33. Ke2 {[%clk 0:00:40.8]}
33... Rb2+ {[%clk 0:00:24.6]} 34. Ke3 {[%clk 0:00:40.9]} 34... g5 {[%clk
0:00:19]} 35. Rxa5 {[%clk 0:00:35.8]} 35... f4+ {[%clk 0:00:19.8]} 36. gxf4
{[%clk 0:00:36.8]} 36... gxf4+ {[%clk 0:00:20.7]} 37. Kd3 {[%clk 0:00:38]} 37...
f3 {[%clk 0:00:21.1]} 38. Rf1 {[%clk 0:00:14.3]} 38... f2 {[%clk 0:00:20.9]} 39.
Ne4 {[%clk 0:00:13.1]} 39... Rb3+ {[%clk 0:00:18.9]} 40. Nc3 {[%clk 0:00:12.5]}
40... Bg2 {[%clk 0:00:16.8]} 41. Rxf2 {[%clk 0:00:13.2]} 41... Nxf2+ {[%clk
0:00:17.4]} 42. Kc4 {[%clk 0:00:15.1]} 42... Rb2 {[%clk 0:00:13.4]} 43. Ra7
{[%clk 0:00:13.1]} 43... Bf1+ {[%clk 0:00:14]} 44. Kc5 {[%clk 0:00:12.2]} 44...
Nd3+ {[%clk 0:00:14.9]} 0-1

[Event "*** Titled Tuesday Blitz"]
[Site "Chess.com"]
[Date "2018.12.04"]
[Round "3"]
[White "Bigfish1995"]
[Black "DeviatkinAndrey"]
[Result "1-0"]
[WhiteElo "3019"]
[BlackElo "2664"]
[TimeControl "180+2"]
[EndTime "13:38:16 PST"]
[Termination "Bigfish1995 won by resignation"]

1. e4 {[%clk 0:03:01.1]} 1... c6 {[%clk 0:02:58.2]} 2. Nf3 {[%clk 0:03:01.1]}
2... d5 {[%clk 0:02:59.4]} 3. Nc3 {[%clk 0:03:02.3]} 3... Bg4 {[%clk 0:02:53.9]}
4. h3 {[%clk 0:03:02.8]} 4... Bxf3 {[%clk 0:02:54.5]} 5. Qxf3 {[%clk 0:03:03.8]}
5... e6 {[%clk 0:02:49.2]} 6. Be2 {[%clk 0:03:03]} 6... Nf6 {[%clk 0:02:48.3]}
7. O-O {[%clk 0:02:58.3]} 7... Nbd7 {[%clk 0:02:43]} 8. d3 {[%clk 0:02:58.9]}
8... Bd6 {[%clk 0:02:40.3]} 9. g3 {[%clk 0:02:44.7]} 9... Qb6 {[%clk 0:02:02]}
10. a3 {[%clk 0:02:35.9]} 10... h5 {[%clk 0:01:48.8]} 11. Kh1 {[%clk 0:02:16]}
11... h4 {[%clk 0:00:58.4]} 12. g4 {[%clk 0:02:14.9]} 12... Qc7 {[%clk
0:00:59.7]} 13. Qe3 {[%clk 0:01:47]} 13... dxe4 {[%clk 0:00:51.7]} 14. dxe4
{[%clk 0:01:41.2]} 14... e5 {[%clk 0:00:52.5]} 15. Qf3 {[%clk 0:01:28.4]} 15...
Nf8 {[%clk 0:00:46.4]} 16. Be3 {[%clk 0:01:20.5]} 16... Ne6 {[%clk 0:00:44.6]}
17. Rad1 {[%clk 0:01:21.5]} 17... O-O-O {[%clk 0:00:19.1]} 18. Bc4 {[%clk
0:00:49.2]} 18... Nf4 {[%clk 0:00:14.9]} 19. Ne2 {[%clk 0:00:32.6]} 19... Nh7
{[%clk 0:00:11.8]} 20. Nxf4 {[%clk 0:00:17]} 20... exf4 {[%clk 0:00:13.2]} 21.
Rxd6 {[%clk 0:00:17.2]} 21... Qxd6 {[%clk 0:00:12.7]} 22. Bxf4 {[%clk
0:00:18.5]} 22... Qf6 {[%clk 0:00:11.7]} 23. e5 {[%clk 0:00:19.3]} 23... Qe7
{[%clk 0:00:10.9]} 24. Qe3 {[%clk 0:00:16.3]} 24... f6 {[%clk 0:00:07.5]} 25.
exf6 {[%clk 0:00:14.4]} 25... Qxe3 {[%clk 0:00:08]} 26. fxe3 {[%clk 0:00:15.1]}
26... Nxf6 {[%clk 0:00:08.7]} 27. Be6+ {[%clk 0:00:16.3]} 27... Nd7 {[%clk
0:00:10]} 28. Rd1 {[%clk 0:00:17.4]} 28... Rhe8 {[%clk 0:00:10.4]} 29. Bf5
{[%clk 0:00:18.5]} 29... Re7 {[%clk 0:00:03.8]} 30. Bg5 {[%clk 0:00:19.1]} 30...
Rde8 {[%clk 0:00:04.3]} 31. Bxe7 {[%clk 0:00:20.3]} 31... Rxe7 {[%clk
0:00:05.5]} 32. Rxd7 {[%clk 0:00:18.4]} 32... Rxd7 {[%clk 0:00:06.6]} 33. Kg2
{[%clk 0:00:19.4]} 33... Kc7 {[%clk 0:00:07.8]} 34. Bxd7 {[%clk 0:00:20.7]}
34... Kxd7 {[%clk 0:00:09.2]} 35. Kf3 {[%clk 0:00:22.3]} 35... g5 {[%clk
0:00:09.5]} 36. Ke4 {[%clk 0:00:23.5]} 36... Ke6 {[%clk 0:00:09.9]} 37. b4
{[%clk 0:00:23.2]} 37... b6 {[%clk 0:00:09.9]} 38. Kd4 {[%clk 0:00:21.7]} 38...
Kd6 {[%clk 0:00:10]} 39. e4 {[%clk 0:00:12.5]} 39... c5+ {[%clk 0:00:10.7]} 40.
bxc5+ {[%clk 0:00:14]} 40... bxc5+ {[%clk 0:00:11.9]} 41. Kc4 {[%clk 0:00:15.7]}
41... Ke5 {[%clk 0:00:07]} 42. Kxc5 {[%clk 0:00:16.9]} 42... Kxe4 {[%clk
0:00:08.6]} 43. c4 {[%clk 0:00:18.2]} 43... Kf3 {[%clk 0:00:10.1]} 44. Kd4
{[%clk 0:00:18]} 44... Kg3 {[%clk 0:00:09.1]} 45. Ke3 {[%clk 0:00:14.8]} 45...
Kxh3 {[%clk 0:00:09.5]} 46. Kf3 {[%clk 0:00:16.2]} 46... Kh2 {[%clk 0:00:09.6]}
47. Kf2 {[%clk 0:00:17.5]} 47... Kh3 {[%clk 0:00:02.5]} 48. c5 {[%clk
0:00:18.7]} 48... Kxg4 {[%clk 0:00:02.9]} 49. c6 {[%clk 0:00:20.1]} 1-0

[Event "*** Titled Tuesday Blitz"]
[Site "Chess.com"]
[Date "2018.12.04"]
[Round "3"]
[White "StanislavNovikov"]
[Black "cherryandmint"]
[Result "0-1"]
[WhiteElo "2456"]
[BlackElo "2715"]
[TimeControl "180+2"]
[EndTime "13:38:20 PST"]
[Termination "cherryandmint won on time"]

1. g3 {[%clk 0:03:01.9]} 1... d5 {[%clk 0:03:00.6]} 2. Bg2 {[%clk 0:03:02.9]}
2... Nf6 {[%clk 0:03:02.2]} 3. d3 {[%clk 0:03:02.8]} 3... c5 {[%clk 0:03:00.7]}
4. Nd2 {[%clk 0:03:03.5]} 4... Nc6 {[%clk 0:03:01.7]} 5. c3 {[%clk 0:03:03.5]}
5... Bg4 {[%clk 0:02:59.5]} 6. h3 {[%clk 0:03:01]} 6... Bh5 {[%clk 0:03:00.3]}
7. a3 {[%clk 0:02:57.7]} 7... e6 {[%clk 0:02:56.7]} 8. b4 {[%clk 0:02:56.3]}
8... b6 {[%clk 0:02:57.9]} 9. Bb2 {[%clk 0:02:56.3]} 9... Bd6 {[%clk 0:02:56.2]}
10. Ngf3 {[%clk 0:02:56.6]} 10... O-O {[%clk 0:02:57]} 11. O-O {[%clk
0:02:54.1]} 11... Qc7 {[%clk 0:02:49.2]} 12. Re1 {[%clk 0:02:51.1]} 12... Rad8
{[%clk 0:02:49.5]} 13. Qb3 {[%clk 0:02:44.8]} 13... Rfe8 {[%clk 0:02:35.9]} 14.
Rac1 {[%clk 0:02:39.8]} 14... h6 {[%clk 0:02:32.3]} 15. Qa2 {[%clk 0:02:36.3]}
15... a5 {[%clk 0:02:24]} 16. bxc5 {[%clk 0:02:29.1]} 16... bxc5 {[%clk
0:02:25]} 17. c4 {[%clk 0:02:27.6]} 17... d4 {[%clk 0:02:24.2]} 18. Rb1 {[%clk
0:02:16.1]} 18... e5 {[%clk 0:02:24]} 19. Nh4 {[%clk 0:02:15.6]} 19... Ne7
{[%clk 0:02:17.2]} 20. Bc1 {[%clk 0:02:10.7]} 20... Rb8 {[%clk 0:02:16.5]} 21.
Rb5 {[%clk 0:02:02.3]} 21... a4 {[%clk 0:01:59.8]} 22. Ne4 {[%clk 0:01:44.8]}
22... Nxe4 {[%clk 0:01:58.1]} 23. Bxe4 {[%clk 0:01:45.4]} 23... Qd7 {[%clk
0:01:54.5]} 24. g4 {[%clk 0:01:38.8]} 24... Bg6 {[%clk 0:00:50.9]} 25. Nxg6
{[%clk 0:01:38.4]} 25... Nxg6 {[%clk 0:00:52.8]} 26. Bd2 {[%clk 0:01:39.2]}
26... Nh4 {[%clk 0:00:49.8]} 27. Reb1 {[%clk 0:01:30.2]} 27... Rec8 {[%clk
0:00:27.8]} 28. Qb2 {[%clk 0:01:21]} 28... Ng6 {[%clk 0:00:25.8]} 29. Bf5 {[%clk
0:01:03.7]} 29... Qd8 {[%clk 0:00:26.9]} 30. Bxc8 {[%clk 0:00:44.8]} 30... Rxc8
{[%clk 0:00:28.8]} 31. Qc1 {[%clk 0:00:45.9]} 31... Qh4 {[%clk 0:00:29.4]} 32.
Qf1 {[%clk 0:00:46.2]} 32... h5 {[%clk 0:00:29.4]} 33. Qg2 {[%clk 0:00:46.6]}
33... e4 {[%clk 0:00:21.7]} 34. Rb6 {[%clk 0:00:31.1]} 34... Bc7 {[%clk
0:00:18.7]} 35. Rb7 {[%clk 0:00:26.8]} 35... exd3 {[%clk 0:00:11.5]} 36. exd3
{[%clk 0:00:27.2]} 36... Qf6 {[%clk 0:00:11.8]} 37. Qe4 {[%clk 0:00:17.8]} 37...
hxg4 {[%clk 0:00:12.3]} 38. hxg4 {[%clk 0:00:18.5]} 38... Bd6 {[%clk 0:00:13.5]}
39. Rd7 {[%clk 0:00:17.3]} 39... Bf8 {[%clk 0:00:13.3]} 40. Rbb7 {[%clk
0:00:16.9]} 40... Ne5 {[%clk 0:00:13.7]} 41. g5 {[%clk 0:00:16.1]} 41... Qe6
{[%clk 0:00:14.8]} 42. Rxf7 {[%clk 0:00:16]} 42... Re8 {[%clk 0:00:13.9]} 43. g6
{[%clk 0:00:12.3]} 43... Qh3 {[%clk 0:00:14]} 44. Bg5 {[%clk 0:00:09.5]} 44...
Qh5 {[%clk 0:00:11.1]} 45. Bd2 {[%clk 0:00:05.2]} 45... Qd1+ {[%clk 0:00:10.5]}
46. Kh2 {[%clk 0:00:05.9]} 46... Qxd2 {[%clk 0:00:11]} 47. Qd5 {[%clk
0:00:03.7]} 47... Qh6+ {[%clk 0:00:12]} 48. Kg2 {[%clk 0:00:04]} 48... Qxg6+
{[%clk 0:00:13.7]} 49. Kh1 {[%clk 0:00:04.7]} 49... Nxf7 {[%clk 0:00:15.6]} 0-1

[Event "*** Titled Tuesday Blitz"]
[Site "Chess.com"]
[Date "2018.12.04"]
[Round "3"]
[White "ASVZ"]
[Black "artichaud"]
[Result "1-0"]
[WhiteElo "2275"]
[BlackElo "2123"]
[TimeControl "180+2"]
[EndTime "13:38:27 PST"]
[Termination "ASVZ won on time"]

1. e4 {[%clk 0:03:01.9]} 1... e6 {[%clk 0:02:59.6]} 2. d4 {[%clk 0:03:02.6]}
2... d5 {[%clk 0:02:59.4]} 3. Bd3 {[%clk 0:03:04]} 3... c5 {[%clk 0:02:56.9]} 4.
exd5 {[%clk 0:03:04.7]} 4... exd5 {[%clk 0:02:55.8]} 5. Nf3 {[%clk 0:03:05.8]}
5... c4 {[%clk 0:02:53.3]} 6. Be2 {[%clk 0:03:06.7]} 6... Bd6 {[%clk 0:02:53.3]}
7. b3 {[%clk 0:03:07.6]} 7... cxb3 {[%clk 0:02:54.5]} 8. axb3 {[%clk 0:03:08.4]}
8... Ne7 {[%clk 0:02:56.4]} 9. c4 {[%clk 0:03:08.6]} 9... O-O {[%clk 0:02:56.3]}
10. O-O {[%clk 0:03:09.4]} 10... Nbc6 {[%clk 0:02:56.6]} 11. Nc3 {[%clk
0:03:05.4]} 11... a6 {[%clk 0:02:50.2]} 12. Be3 {[%clk 0:03:05.5]} 12... Bf5
{[%clk 0:02:46.6]} 13. Qd2 {[%clk 0:03:05.3]} 13... Re8 {[%clk 0:02:45.3]} 14.
Rfe1 {[%clk 0:03:05.4]} 14... Bg6 {[%clk 0:02:44.7]} 15. Nh4 {[%clk 0:03:03.3]}
15... Nb4 {[%clk 0:02:42.3]} 16. Nxg6 {[%clk 0:03:03.9]} 16... hxg6 {[%clk
0:02:40.9]} 17. Bf3 {[%clk 0:03:03.5]} 17... Rc8 {[%clk 0:02:39.3]} 18. c5
{[%clk 0:02:46.4]} 18... Bc7 {[%clk 0:02:35.4]} 19. g3 {[%clk 0:02:47.9]} 19...
Nf5 {[%clk 0:02:30]} 20. Bg5 {[%clk 0:02:42]} 20... Qd7 {[%clk 0:02:28.4]} 21.
Ne2 {[%clk 0:02:08.6]} 21... a5 {[%clk 0:02:23.6]} 22. Bf4 {[%clk 0:02:06.1]}
22... Qb5 {[%clk 0:02:06.2]} 23. Bxc7 {[%clk 0:02:04.2]} 23... Rxc7 {[%clk
0:02:06.1]} 24. Nf4 {[%clk 0:02:05.5]} 24... Rd8 {[%clk 0:02:04.1]} 25. Be2
{[%clk 0:01:57.9]} 25... Qd7 {[%clk 0:01:39.1]} 26. Rxa5 {[%clk 0:01:58.5]}
26... Nc6 {[%clk 0:01:39.7]} 27. Ra4 {[%clk 0:01:59]} 27... Re8 {[%clk
0:01:22.5]} 28. Bb5 {[%clk 0:01:57.9]} 28... Rxe1+ {[%clk 0:01:10.5]} 29. Qxe1
{[%clk 0:01:59.8]} 29... Qd8 {[%clk 0:01:12.1]} 30. Bxc6 {[%clk 0:01:46.5]}
30... bxc6 {[%clk 0:01:11.3]} 31. Nd3 {[%clk 0:01:36.9]} 31... Re7 {[%clk
0:01:08.7]} 32. Qa5 {[%clk 0:01:33.6]} 32... Qxa5 {[%clk 0:01:05.2]} 33. Rxa5
{[%clk 0:01:35.5]} 33... Nxd4 {[%clk 0:01:06.2]} 34. Ra8+ {[%clk 0:01:35.1]}
34... Kh7 {[%clk 0:01:06.9]} 35. Rc8 {[%clk 0:01:34.9]} 35... Re2 {[%clk
0:01:06.4]} 36. Nb4 {[%clk 0:01:30.4]} 36... Rb2 {[%clk 0:01:00.5]} 37. Nxc6
{[%clk 0:01:31.8]} 37... Nxc6 {[%clk 0:00:58.8]} 38. Rxc6 {[%clk 0:01:33.7]}
38... Rxb3 {[%clk 0:01:00.4]} 39. Rc7 {[%clk 0:01:30.4]} 39... Rc3 {[%clk
0:00:57.1]} 40. h4 {[%clk 0:01:27]} 40... f5 {[%clk 0:00:53.6]} 41. Kg2 {[%clk
0:01:22.6]} 41... d4 {[%clk 0:00:53.6]} 42. c6 {[%clk 0:01:15.7]} 42... d3
{[%clk 0:00:54.1]} 43. Kf3 {[%clk 0:01:16.5]} 43... Rc2 {[%clk 0:00:48.2]} 44.
Ke3 {[%clk 0:01:16.5]} 44... d2 {[%clk 0:00:41.3]} 45. Ke2 {[%clk 0:01:17.9]}
45... d1=Q+ {[%clk 0:00:35]} 46. Kxd1 {[%clk 0:01:18.9]} 46... Rxf2 {[%clk
0:00:36.6]} 47. Rd7 {[%clk 0:01:08.8]} 47... Rf3 {[%clk 0:00:22.4]} 48. Kd2
{[%clk 0:01:07.1]} 48... Rf2+ {[%clk 0:00:18.5]} 49. Kc3 {[%clk 0:00:59.7]}
49... Rf1 {[%clk 0:00:17.4]} 50. c7 {[%clk 0:00:57.4]} 50... Rc1+ {[%clk
0:00:17.6]} 51. Kb4 {[%clk 0:00:58.6]} 51... g5 {[%clk 0:00:16.5]} 52. hxg5
{[%clk 0:00:57.4]} 52... Kg6 {[%clk 0:00:17.4]} 53. Kb5 {[%clk 0:00:58.9]} 53...
Rb1+ {[%clk 0:00:14.6]} 54. Kc6 {[%clk 0:00:59.9]} 54... Rc1+ {[%clk 0:00:15.8]}
55. Kd6 {[%clk 0:01:01.5]} 55... Kxg5 {[%clk 0:00:11.5]} 56. Rxg7+ {[%clk
0:01:02]} 56... Kf6 {[%clk 0:00:12.7]} 57. Rg8 {[%clk 0:01:01.2]} 57... Rd1+
{[%clk 0:00:12.1]} 58. Kc6 {[%clk 0:01:01.3]} 58... Rc1+ {[%clk 0:00:13.2]} 59.
Kb6 {[%clk 0:01:02.5]} 59... Rb1+ {[%clk 0:00:13.3]} 60. Ka5 {[%clk 0:01:03.7]}
60... Ra1+ {[%clk 0:00:10.9]} 61. Kb4 {[%clk 0:01:04.6]} 61... Rc1 {[%clk
0:00:11.3]} 62. c8=Q {[%clk 0:01:05.1]} 1-0

[Event "*** Titled Tuesday Blitz"]
[Site "Chess.com"]
[Date "2018.12.04"]
[Round "3"]
[White "hansen"]
[Black "SmoothAsAHedgehog"]
[Result "0-1"]
[WhiteElo "2776"]
[BlackElo "2560"]
[TimeControl "180+2"]
[EndTime "13:38:33 PST"]
[Termination "SmoothAsAHedgehog won by resignation"]

1. e4 {[%clk 0:03:00.6]} 1... e5 {[%clk 0:03:00.2]} 2. Nf3 {[%clk 0:03:00.9]}
2... Nc6 {[%clk 0:03:01.4]} 3. Bb5 {[%clk 0:03:01.8]} 3... a6 {[%clk 0:03:01.6]}
4. Ba4 {[%clk 0:03:03.3]} 4... Nf6 {[%clk 0:03:01.7]} 5. O-O {[%clk 0:03:04.6]}
5... Be7 {[%clk 0:03:03.3]} 6. Re1 {[%clk 0:03:05.9]} 6... b5 {[%clk 0:03:02.8]}
7. Bb3 {[%clk 0:03:07.3]} 7... d6 {[%clk 0:03:03.1]} 8. c3 {[%clk 0:03:08.3]}
8... O-O {[%clk 0:03:03.9]} 9. h3 {[%clk 0:03:09.7]} 9... Nb8 {[%clk 0:03:05.1]}
10. d4 {[%clk 0:03:10.7]} 10... Nbd7 {[%clk 0:03:06.8]} 11. Nbd2 {[%clk
0:03:12]} 11... Bb7 {[%clk 0:03:07.7]} 12. Bc2 {[%clk 0:03:09.2]} 12... Re8
{[%clk 0:03:08.4]} 13. Nf1 {[%clk 0:03:08.1]} 13... Bf8 {[%clk 0:03:08.9]} 14.
Ng3 {[%clk 0:03:09.7]} 14... g6 {[%clk 0:03:10.4]} 15. a4 {[%clk 0:03:11.1]}
15... Bg7 {[%clk 0:03:10.3]} 16. Bd3 {[%clk 0:03:11.3]} 16... c6 {[%clk
0:03:11.1]} 17. Bg5 {[%clk 0:03:10.3]} 17... h6 {[%clk 0:02:59.1]} 18. Be3
{[%clk 0:03:11.3]} 18... Qc7 {[%clk 0:02:58.6]} 19. Qc1 {[%clk 0:03:00.1]} 19...
Kh7 {[%clk 0:02:57.8]} 20. c4 {[%clk 0:02:53.4]} 20... exd4 {[%clk 0:02:48.4]}
21. Bxd4 {[%clk 0:02:51.9]} 21... c5 {[%clk 0:02:40]} 22. Bxf6 {[%clk
0:02:51.8]} 22... Nxf6 {[%clk 0:02:41.9]} 23. axb5 {[%clk 0:02:51.9]} 23... axb5
{[%clk 0:02:42.1]} 24. Rxa8 {[%clk 0:02:53.4]} 24... Bxa8 {[%clk 0:02:36.1]} 25.
cxb5 {[%clk 0:02:54.6]} 25... Nd7 {[%clk 0:02:17.5]} 26. b3 {[%clk 0:02:30.8]}
26... Ne5 {[%clk 0:02:14.7]} 27. Nxe5 {[%clk 0:02:31.4]} 27... Bxe5 {[%clk
0:02:16.6]} 28. Nf1 {[%clk 0:01:47.3]} 28... Bd4 {[%clk 0:02:06.1]} 29. Nd2
{[%clk 0:01:41.1]} 29... Qd8 {[%clk 0:01:37.4]} 30. Nf3 {[%clk 0:01:41.7]} 30...
Bf6 {[%clk 0:01:32.2]} 31. Qf4 {[%clk 0:01:41.9]} 31... Kg7 {[%clk 0:01:31.1]}
32. Bc4 {[%clk 0:01:43.1]} 32... Qd7 {[%clk 0:00:21.5]} 33. h4 {[%clk
0:00:29.5]} 33... Qe7 {[%clk 0:00:17.1]} 34. h5 {[%clk 0:00:21.3]} 34... g5
{[%clk 0:00:16]} 35. Qf5 {[%clk 0:00:22.3]} 35... Bxe4 {[%clk 0:00:13.8]} 36.
Qg4 {[%clk 0:00:22.9]} 36... Qb7 {[%clk 0:00:10.5]} 37. Qg3 {[%clk 0:00:17.9]}
37... d5 {[%clk 0:00:11.6]} 38. Bf1 {[%clk 0:00:18.3]} 38... Re7 {[%clk
0:00:12.3]} 39. Nd2 {[%clk 0:00:17]} 39... Bh7 {[%clk 0:00:11.6]} 40. Rxe7
{[%clk 0:00:17.3]} 40... Qxe7 {[%clk 0:00:13.5]} 41. b6 {[%clk 0:00:18]} 41...
Be5 {[%clk 0:00:11.4]} 42. Qe3 {[%clk 0:00:19.1]} 42... Qd6 {[%clk 0:00:11.4]}
43. Nf3 {[%clk 0:00:17.3]} 43... Bf4 {[%clk 0:00:11.7]} 44. Qc3+ {[%clk
0:00:18.4]} 44... d4 {[%clk 0:00:12.6]} 45. Qa5 {[%clk 0:00:19.7]} 45... Be4
{[%clk 0:00:13.3]} 46. Be2 {[%clk 0:00:17.7]} 46... g4 {[%clk 0:00:14]} 47. Nh4
{[%clk 0:00:16.6]} 47... g3 {[%clk 0:00:15.2]} 48. Bf3 {[%clk 0:00:12.1]} 48...
gxf2+ {[%clk 0:00:16.5]} 49. Kf1 {[%clk 0:00:13.4]} 49... Bd3+ {[%clk
0:00:17.7]} 50. Be2 {[%clk 0:00:13]} 50... Bxe2+ {[%clk 0:00:15.3]} 51. Kxe2
{[%clk 0:00:14.4]} 51... Qe7+ {[%clk 0:00:16.8]} 52. Kf3 {[%clk 0:00:12.8]}
52... Qxh4 {[%clk 0:00:17.2]} 0-1

[Event "*** Titled Tuesday Blitz"]
[Site "Chess.com"]
[Date "2018.12.04"]
[Round "3"]
[White "Guenplen"]
[Black "eldur16"]
[Result "1/2-1/2"]
[WhiteElo "2817"]
[BlackElo "2647"]
[TimeControl "180+2"]
[EndTime "13:38:38 PST"]
[Termination "Game drawn by agreement"]

1. d4 {[%clk 0:03:01.9]} 1... Nf6 {[%clk 0:03:00.1]} 2. Bf4 {[%clk 0:03:02.1]}
2... g6 {[%clk 0:03:00.5]} 3. Nf3 {[%clk 0:03:01.3]} 3... Bg7 {[%clk 0:03:01.2]}
4. c3 {[%clk 0:03:01.1]} 4... d6 {[%clk 0:03:01.2]} 5. h3 {[%clk 0:03:01.6]}
5... O-O {[%clk 0:03:01.1]} 6. Nbd2 {[%clk 0:03:01.8]} 6... b6 {[%clk
0:03:01.3]} 7. e3 {[%clk 0:02:58.1]} 7... Bb7 {[%clk 0:03:01.4]} 8. Bh2 {[%clk
0:02:59]} 8... c5 {[%clk 0:03:01.6]} 9. Be2 {[%clk 0:02:57.6]} 9... Nbd7 {[%clk
0:03:02.1]} 10. O-O {[%clk 0:02:58.2]} 10... Qc7 {[%clk 0:02:58.3]} 11. a4
{[%clk 0:02:54.7]} 11... a6 {[%clk 0:02:58.7]} 12. Bd3 {[%clk 0:02:55.7]} 12...
e5 {[%clk 0:02:56.6]} 13. dxe5 {[%clk 0:02:55]} 13... Nxe5 {[%clk 0:02:57.1]}
14. Nxe5 {[%clk 0:02:55.3]} 14... dxe5 {[%clk 0:02:58]} 15. Qe2 {[%clk
0:02:55.7]} 15... Rfe8 {[%clk 0:02:56.4]} 16. Rfd1 {[%clk 0:02:55]} 16... Qc6
{[%clk 0:02:55.9]} 17. e4 {[%clk 0:02:56.3]} 17... Nh5 {[%clk 0:02:50.7]} 18.
Bc4 {[%clk 0:02:55.2]} 18... Nf4 {[%clk 0:02:47.3]} 19. Bxf4 {[%clk 0:02:52.6]}
19... exf4 {[%clk 0:02:47.9]} 20. Qf3 {[%clk 0:02:43.6]} 20... Qc7 {[%clk
0:02:44.9]} 21. Bd5 {[%clk 0:02:42.8]} 21... g5 {[%clk 0:02:37.4]} 22. Nc4
{[%clk 0:02:41.4]} 22... Red8 {[%clk 0:02:26.6]} 23. Bxb7 {[%clk 0:02:25]} 23...
Qxb7 {[%clk 0:02:22.6]} 24. Rd5 {[%clk 0:02:24.4]} 24... b5 {[%clk 0:02:07.9]}
25. axb5 {[%clk 0:02:16.6]} 25... axb5 {[%clk 0:02:07.8]} 26. Rxa8 {[%clk
0:02:15.5]} 26... Qxa8 {[%clk 0:02:01.4]} 27. Nb6 {[%clk 0:01:56.4]} 27... Qa1+
{[%clk 0:01:55.6]} 28. Kh2 {[%clk 0:01:57.1]} 28... Rxd5 {[%clk 0:01:44.8]} 29.
exd5 {[%clk 0:01:35.7]} 29... Bf8 {[%clk 0:01:43.9]} 30. Nd7 {[%clk 0:01:07.8]}
30... Qxb2 {[%clk 0:01:37]} 31. Nxf8 {[%clk 0:00:56.4]} 31... Kxf8 {[%clk
0:01:34.6]} 32. d6 {[%clk 0:00:57.1]} 32... Qd2 {[%clk 0:01:33.5]} 33. Qa8+
{[%clk 0:00:45.1]} 33... Kg7 {[%clk 0:01:33.5]} 34. Qd8 {[%clk 0:00:47]} 34...
h6 {[%clk 0:01:24.7]} 35. f3 {[%clk 0:00:30.2]} 35... b4 {[%clk 0:01:17.5]} 36.
cxb4 {[%clk 0:00:31.2]} 36... cxb4 {[%clk 0:01:18.1]} 37. d7 {[%clk 0:00:18.3]}
37... b3 {[%clk 0:01:18.3]} 38. Qe7 {[%clk 0:00:12.1]} 38... b2 {[%clk
0:01:15.3]} 39. Qe5+ {[%clk 0:00:12.5]} 39... Kg8 {[%clk 0:00:59.6]} 40. Qe8+
{[%clk 0:00:11.1]} 40... Kg7 {[%clk 0:00:59.9]} 41. Qe5+ {[%clk 0:00:12]} 41...
Kg8 {[%clk 0:01:00.2]} 42. Qe8+ {[%clk 0:00:06.6]} 42... Kg7 {[%clk 0:01:00.9]}
43. Qe5+ {[%clk 0:00:07.7]} 43... Kg6 {[%clk 0:00:46.9]} 44. Qe4+ {[%clk
0:00:08.8]} 44... Kf6 {[%clk 0:00:42.9]} 45. Qe8 {[%clk 0:00:04.4]} 45... b1=Q
{[%clk 0:00:40.2]} 46. d8=Q+ {[%clk 0:00:05.7]} 46... Qxd8 {[%clk 0:00:40.1]}
47. Qxd8+ {[%clk 0:00:07.6]} 47... Kg7 {[%clk 0:00:39.6]} 48. Qd4+ {[%clk
0:00:08.7]} 48... Kh7 {[%clk 0:00:38.5]} 49. Qf6 {[%clk 0:00:08.1]} 49... Qg6
{[%clk 0:00:38.7]} 50. Qe5 {[%clk 0:00:09.3]} 50... Qe6 {[%clk 0:00:39.2]} 51.
Qd4 {[%clk 0:00:09.8]} 51... h5 {[%clk 0:00:36.5]} 52. Qd3+ {[%clk 0:00:10.7]}
52... Kh6 {[%clk 0:00:35.7]} 53. Qd8 {[%clk 0:00:12.2]} 53... Qe5 {[%clk
0:00:34]} 54. Qg8 {[%clk 0:00:12.3]} 54... Qf6 {[%clk 0:00:31.6]} 55. Qf8+
{[%clk 0:00:12.7]} 55... Kh7 {[%clk 0:00:31.9]} 56. Qc8 {[%clk 0:00:12.1]} 56...
Kg7 {[%clk 0:00:30.9]} 57. Qd7 {[%clk 0:00:12.3]} 57... Qe5 {[%clk 0:00:31.5]}
58. Qd8 {[%clk 0:00:12.1]} 58... Qc5 {[%clk 0:00:29.4]} 1/2-1/2